fUST/lending_fUST_20250529
["ID","MTS","AMOUNT","RATE_DAILY","PERIOD"]
[362857606,1748494235209,-455.57023323,0.0001997,2]
[362857607,1748494235219,-410.16787576,0.0001997,2]
[362857608,1748494235228,-430.0,0.0001997,2]
[362857609,1748494235238,-430.0,0.0001997,2]
[362857610,1748494235250,-430.0,0.0001997,2]
[362857611,1748494235260,-430.0,0.0001997,2]
[362857612,1748494235269,-409.4001086,0.0001997,2]
[362857613,1748494235278,-435.15951577,0.0001997,2]
[362857614,1748494235288,-430.0,0.0001997,2]
[362857615,1748494235297,-430.0,0.0001997,2]
[362857616,1748494235307,-430.0,0.0001997,2]
[362857617,1748494235316,-430.0,0.0001997,2]
[362857618,1748494235326,-430.0,0.0001997,2]
[362857619,1748494235337,-430.0,0.0001997,2]
[362857620,1748494235348,-430.0,0.0001997,2]
[362857621,1748494235358,-396.55740732,0.0001997,2]
[362857622,1748494235367,-376.97075569,0.0001997,2]
[362857623,1748494235377,-430.0,0.0001997,2]
[362857624,1748494235387,-205.43,0.0001997,2]
[362857625,1748494235396,-430.0,0.0001997,2]
[362857626,1748494235407,-430.0,0.0001997,2]
[362857627,1748494235417,-158.20124188,0.0001997,2]
[362857628,1748494235427,-430.0,0.0001997,2]
[362857629,1748494235436,-345.61744052,0.0001997,2]
[362857630,1748494235446,-430.0,0.0001997,2]
[362857631,1748494235455,-430.0,0.0001997,2]
[362857632,1748494235464,-430.0,0.0001997,2]
[362857633,1748494235473,-211.35,0.0001997,2]
[362857634,1748494235482,-430.0,0.0001997,2]
[362857635,1748494235492,-430.0,0.0001997,2]
[362857636,1748494235504,-430.0,0.0001997,2]
[362857637,1748494235514,-516.13,0.0001997,2]
[362857638,1748494235523,-430.0,0.0001997,2]
[362857639,1748494235532,-430.0,0.0001997,2]
[362857640,1748494235543,-430.0,0.0001997,2]
[362857641,1748494235552,-159.59793542,0.0001997,2]
[362857642,1748494235561,-430.0,0.0001997,2]
[362857643,1748494235574,-430.0,0.0001997,2]
[362857644,1748494235584,-237.15651918,0.0001997,2]
[362857645,1748494235593,-430.0,0.0001997,2]
[362857646,1748494235602,-430.0,0.0001997,2]
[362857647,1748494235612,-430.0,0.0001997,2]
[362857648,1748494235622,-430.0,0.0001997,2]
[362857649,1748494235631,-430.0,0.0001997,2]
[362857650,1748494235644,-430.0,0.0001997,2]
[362857651,1748494235654,-430.0,0.0001997,2]
[362857652,1748494235664,-379.98565656,0.0001997,2]
[362857653,1748494235673,-432.1844074,0.0001997,2]
[362857654,1748494235685,-430.0,0.0001997,2]
[362857655,1748494235695,-430.0,0.0001997,2]
[362857656,1748494235704,-430.0,0.0001997,2]
[362857657,1748494235715,-430.0,0.0001997,2]
[362857658,1748494235724,-456.7367056,0.0001997,2]
[362857659,1748494235735,-430.0,0.0001997,2]
[362857660,1748494235746,-430.0,0.0001997,2]
[362857661,1748494235756,-285.9579736,0.0001997,2]
[362857662,1748494235766,-418.86418021,0.0001997,2]
[362857663,1748494235775,-431.51526081,0.0001997,2]
[362857664,1748494235784,-430.0,0.0001997,2]
[362857665,1748494235793,-430.0,0.0001997,2]
[362857666,1748494235803,-430.0,0.0001997,2]
[362857667,1748494235812,-307.45481803,0.0001997,2]
[362857668,1748494235821,-430.0,0.0001997,2]
[362857669,1748494235831,-430.0,0.0001997,2]
[362857670,1748494235840,-430.0,0.0001997,2]
[362857671,1748494235850,-430.0,0.0001997,2]
[362857672,1748494235859,-420.0,0.0001997,2]
[362857673,1748494235868,-430.0,0.0001997,2]
[362857674,1748494235877,-432.89631006,0.0001997,2]
[362857675,1748494235886,-248.03,0.0001997,2]
[362857676,1748494235896,-430.0,0.0001997,2]
[362857677,1748494235905,-897.4,0.0001997,2]
[362857678,1748494235914,-400.0,0.0001997,2]
[362857679,1748494235924,-431.40357897,0.0001997,2]
[362857680,1748494235933,-470.0,0.0001997,2]
[362857681,1748494235942,-516.52436106,0.0001997,2]
[362857682,1748494235951,-430.0,0.0001997,2]
[362857683,1748494235960,-430.0,0.0001997,2]
[362857684,1748494235970,-430.0,0.0001997,2]
[362857685,1748494235979,-430.0,0.0001997,2]
[362857686,1748494235989,-430.0,0.0001997,2]
[362857687,1748494236001,-430.0,0.0001997,2]
[362857688,1748494236010,-430.0,0.0001997,2]
[362857689,1748494236019,-430.0,0.0001997,2]
[362857690,1748494236029,-430.0,0.0001997,2]
[362857691,1748494236039,-430.0,0.0001997,2]
[362857692,1748494236048,-430.0,0.0001997,2]
[362857693,1748494236057,-430.0,0.0001997,2]
[362857694,1748494236067,-415.16396479,0.0001997,2]
[362857695,1748494236076,-430.0,0.0001997,2]
[362857696,1748494236086,-430.0,0.0001997,2]
[362857697,1748494236095,-430.0,0.0001997,2]
[362857698,1748494236104,-430.0,0.0001997,2]
[362857699,1748494236113,-500.0,0.00019973,2]
[362857700,1748494236123,-500.0,0.00019973,2]
[362857701,1748494236133,-430.0,0.00019991,2]
[362857702,1748494236143,-430.0,0.00019991,2]
[362857703,1748494236152,-159.27580251,0.00019992,2]
[362857704,1748494236162,-402.71754168,0.00019992,2]
[362857705,1748494236171,-419.61368753,0.00019992,2]
[362857706,1748494236181,-411.94521283,0.00019992,2]
[362857707,1748494236191,-315.65516237,0.00019992,2]
[362857708,1748494236200,-401.8984415,0.00019992,2]
[362857709,1748494236210,-415.71887669,0.00019992,2]
[362857710,1748494236319,-430.0,0.00019992,2]
[362857711,1748494236330,-431.37555284,0.00019992,2]
[362857712,1748494236339,-394.98024811,0.00019992,2]
[362857713,1748494236349,-273.55843738,0.00020072,2]
[362857714,1748494236358,-590.3879468,0.00020102,2]
[362857715,1748494236369,-430.0,0.00020241,2]
[362857716,1748494236378,-430.0,0.00020241,2]
[362857717,1748494236387,-430.0,0.00020241,2]
[362857718,1748494236397,-443.23,0.00020241,2]
[362857719,1748494236406,-1738.56,0.00020241,2]
[362857720,1748494236415,-430.0,0.00020241,2]
[362857721,1748494236426,-156.42,0.00020241,2]
[362857722,1748494236436,-430.0,0.00020242,2]
[362857723,1748494236445,-430.0,0.00020242,2]
[362857724,1748494236455,-430.0,0.00020242,2]
[362857725,1748494236464,-430.0,0.00020242,2]
[362857726,1748494236473,-430.0,0.00020242,2]
[362857727,1748494236483,-1891.53,0.00020242,2]
[362857728,1748494236492,-430.0,0.00020242,2]
[362857729,1748494236503,-738.68,0.00020242,2]
[362857730,1748494236512,-2813.98,0.00020242,2]
[362857731,1748494236522,-430.0,0.00020242,2]
[362857732,1748494236532,-399.64,0.00020242,2]
[362857733,1748494236541,-1157.71,0.00020242,2]
[362857734,1748494236550,-1197.27,0.00020242,2]
[362857735,1748494236559,-430.0,0.00020242,2]
[362857736,1748494236569,-430.0,0.00020242,2]
[362857737,1748494236578,-150.32,0.00020242,2]
[362857738,1748494236587,-430.0,0.00020242,2]
[362857739,1748494236597,-430.0,0.00020242,2]
[362857740,1748494236606,-430.0,0.00020242,2]
[362857741,1748494236615,-430.0,0.00020242,2]
[362857742,1748494236624,-430.0,0.00020242,2]
[362857743,1748494236634,-516.23723226,0.00020242,2]
[362857744,1748494236646,-363.22,0.00020242,2]
[362857745,1748494236656,-430.0,0.00020242,2]
[362857746,1748494236665,-430.0,0.00020242,2]
[362857747,1748494236675,-430.0,0.00020242,2]
[362857748,1748494236684,-430.0,0.00020242,2]
[362857749,1748494236693,-430.0,0.00020242,2]
[362857750,1748494236702,-430.0,0.00020242,2]
[362857751,1748494236712,-430.0,0.00020242,2]
[362857752,1748494236721,-430.0,0.00020242,2]
[362857753,1748494236730,-430.0,0.00020242,2]
[362857754,1748494236739,-430.0,0.00020243,2]
[362857755,1748494236751,-430.0,0.00020243,2]
[362857756,1748494236760,-204.26,0.00020243,2]
[362857757,1748494236769,-298.48,0.00020243,2]
[362857758,1748494236779,-430.0,0.00020243,2]
[362857759,1748494236788,-555.16257092,0.00020243,2]
[362857760,1748494236798,-430.0,0.00020243,2]
[362857761,1748494236807,-430.0,0.00020243,2]
[362857762,1748494236816,-430.0,0.00020243,2]
[362857763,1748494236826,-430.0,0.00020243,2]
[362857764,1748494236835,-430.0,0.00020243,2]
[362857765,1748494236845,-430.0,0.00020243,2]
[362857766,1748494236854,-430.0,0.00020243,2]
[362857767,1748494236863,-430.0,0.00020243,2]
[362857768,1748494236872,-430.0,0.00020243,2]
[362857769,1748494236882,-430.0,0.00020243,2]
[362857770,1748494236891,-430.0,0.00020243,2]
[362857771,1748494236900,-430.0,0.00020243,2]
[362857772,1748494236909,-430.0,0.00020243,2]
[362857773,1748494236918,-430.0,0.00020243,2]
[362857774,1748494236927,-430.0,0.00020243,2]
[362857775,1748494236937,-430.0,0.00020243,2]
[362857776,1748494236946,-430.0,0.00020243,2]
[362857777,1748494236955,-430.0,0.00020243,2]
[362857778,1748494236964,-430.0,0.00020243,2]
[362857779,1748494236973,-981.46,0.00020243,2]
[362857780,1748494236982,-468.12,0.00020243,2]
[362857781,1748494236991,-569.4,0.00020243,2]
[362857782,1748494237001,-430.0,0.00020243,2]
[362857783,1748494237010,-430.0,0.00020243,2]
[362857784,1748494237019,-423.86641696,0.00020243,2]
[362857785,1748494237028,-430.0,0.00020243,2]
[362857786,1748494237038,-430.0,0.00020243,2]
[362857787,1748494237049,-430.0,0.00020243,2]
[362857788,1748494237059,-430.0,0.00020243,2]
[362857789,1748494237068,-430.0,0.00020243,2]
[362857790,1748494237077,-430.0,0.00020243,2]
[362857791,1748494237087,-336.41,0.00020243,2]
[362857792,1748494237097,-606.31,0.00020243,2]
[362857793,1748494237107,-199.98,0.00020243,2]
[362857794,1748494237116,-430.0,0.00020243,2]
[362857795,1748494237125,-430.0,0.00020243,2]
[362857796,1748494237135,-430.0,0.00020243,2]
[362857797,1748494237144,-430.0,0.00020243,2]
[362857798,1748494237154,-430.0,0.00020243,2]
[362857799,1748494237163,-430.38,0.00020243,2]
[362857800,1748494237172,-430.0,0.00020243,2]
[362857801,1748494237181,-430.0,0.00020243,2]
[362857802,1748494237191,-298.96,0.00020243,2]
[362857803,1748494237200,-430.0,0.00020243,2]
[362857804,1748494237209,-470.09,0.00020243,2]
[362857805,1748494237218,-430.0,0.00020243,2]
[362857806,1748494237228,-430.0,0.00020243,2]
[362857807,1748494237239,-607.17,0.00020243,2]
[362857808,1748494237252,-430.0,0.00020243,2]
[362857809,1748494237261,-430.0,0.00020243,2]
[362857810,1748494237271,-430.0,0.00020243,2]
[362857811,1748494237281,-430.0,0.00020243,2]
[362857812,1748494237291,-430.0,0.00020243,2]
[362857813,1748494237301,-1824.96,0.00020243,2]
[362857814,1748494237310,-500.0,0.00020243,2]
[362857815,1748494237321,-1243.86,0.00020243,2]
[362857816,1748494237330,-430.0,0.00020243,2]
[362857817,1748494237340,-430.0,0.00020243,2]
[362857818,1748494237351,-430.0,0.00020243,2]
[362857819,1748494237360,-430.0,0.00020243,2]
[362857820,1748494237370,-430.0,0.00020244,2]
[362857821,1748494237379,-434.95793077,0.00020244,2]
[362857822,1748494237388,-300.0,0.00020244,2]
[362857823,1748494237398,-430.0,0.00020244,2]
[362857824,1748494237407,-402.21184469,0.00020244,2]
[362857826,1748494237417,-326.48807226,0.00020244,2]
[362857828,1748494237426,-430.0,0.00020244,2]
[362857830,1748494237436,-430.0,0.00020244,2]
[362857832,1748494237445,-430.0,0.00020244,2]
[362857834,1748494237455,-432.85789592,0.00020244,2]
[362857837,1748494237464,-430.0,0.00020244,2]
[362857839,1748494237473,-265.01132169,0.00020244,2]
[362857840,1748494237482,-314.26926806,0.00020244,2]
[362857842,1748494237491,-430.0,0.00020244,2]
[362857844,1748494237504,-430.0,0.00020244,2]
[362857847,1748494237514,-430.0,0.00020244,2]
[362857849,1748494237523,-410.44460985,0.00020244,2]
[362857850,1748494237533,-451.50454324,0.00020244,2]
[362857851,1748494237542,-430.0,0.00020244,2]
[362857853,1748494237551,-371.44406114,0.00020244,2]
[362857854,1748494237560,-430.0,0.00020244,2]
[362857855,1748494237569,-430.0,0.00020244,2]
[362857856,1748494237578,-430.0,0.00020244,2]
[362857857,1748494237587,-430.0,0.00020244,2]
[362857858,1748494237597,-430.0,0.00020244,2]
[362857859,1748494237606,-438.48,0.00020244,2]
[362857860,1748494237615,-430.0,0.00020244,2]
[362857861,1748494237624,-430.0,0.00020244,2]
[362857862,1748494237634,-430.0,0.00020244,2]
[362857863,1748494237647,-481.14,0.00020244,2]
[362857864,1748494237656,-447.76,0.00020244,2]
[362857865,1748494237665,-430.0,0.00020244,2]
[362857866,1748494237675,-430.0,0.00020244,2]
[362857867,1748494237686,-430.0,0.00020244,2]
[362857868,1748494237696,-430.0,0.00020244,2]
[362857869,1748494237705,-430.0,0.00020244,2]
[362857870,1748494237715,-430.0,0.00020244,2]
[362857871,1748494237724,-430.0,0.00020244,2]
[362857872,1748494237734,-430.0,0.00020244,2]
[362857873,1748494237744,-532.46,0.00020244,2]
[362857874,1748494237757,-897.4,0.00020244,2]
[362857875,1748494237766,-465.24,0.00020244,2]
[362857876,1748494237775,-430.0,0.00020244,2]
[362857877,1748494237784,-430.0,0.00020244,2]
[362857878,1748494237793,-430.0,0.00020244,2]
[362857879,1748494237803,-260.5,0.00020244,2]
[362857880,1748494237812,-462.80588903,0.00020244,2]
[362857881,1748494237821,-430.0,0.00020244,2]
[362857882,1748494237830,-430.0,0.00020244,2]
[362857883,1748494237839,-340.92,0.00020244,2]
[362857884,1748494237848,-273.55843738,0.00020245,2]
[362857885,1748494237857,-430.0,0.00020265,2]
[362857886,1748494237866,-403.94,0.00020265,2]
[362857887,1748494237875,-150.77982721,0.00020284,2]
[362857888,1748494237884,-273.55843738,0.00020417,3]
[362857889,1748494237894,-430.0,0.00020515,2]
[362857890,1748494237903,-430.0,0.00020515,2]
[362857891,1748494237912,-430.0,0.00020515,2]
[362857892,1748494237922,-443.23,0.00020515,2]
[362857893,1748494237931,-1738.56,0.00020515,2]
[362857894,1748494237940,-430.0,0.00020515,2]
[362857895,1748494237950,-447.08694593,0.00020516,2]
[362857897,1748494237959,-468.31550143,0.00020516,2]
[362857899,1748494237968,-1891.53,0.00020516,2]
[362857901,1748494237977,-430.0,0.00020516,2]
[362857903,1748494237986,-738.68,0.00020516,2]
[362857905,1748494237995,-2813.98,0.00020516,2]
[362857907,1748494238006,-430.0,0.00020516,2]
[362857909,1748494238014,-1157.71,0.00020516,2]
[362857911,1748494238023,-1197.27,0.00020516,2]
[362857913,1748494238032,-430.0,0.00020516,2]
[362857915,1748494238042,-430.0,0.00020516,2]
[362857917,1748494238051,-430.0,0.00020516,2]
[362857919,1748494238060,-430.0,0.00020516,2]
[362857921,1748494238073,-430.0,0.00020516,2]
[362857923,1748494238084,-430.0,0.00020516,2]
[362857925,1748494238093,-430.0,0.00020516,2]
[362857927,1748494238102,-430.0,0.00020516,2]
[362857929,1748494238112,-430.0,0.00020516,2]
[362857931,1748494238121,-430.0,0.00020516,2]
[362857933,1748494238130,-430.0,0.00020516,2]
[362857935,1748494238139,-353.62,0.00020516,2]
[362857937,1748494238148,-430.0,0.00020516,2]
[362857939,1748494238157,-430.0,0.00020516,2]
[362857941,1748494238166,-430.0,0.00020516,2]
[362857943,1748494238175,-332.88,0.00020517,2]
[362857945,1748494238185,-430.0,0.00020517,2]
[362857947,1748494238194,-264.46,0.00020517,2]
[362857949,1748494238204,-430.0,0.00020517,2]
[362857951,1748494238214,-430.0,0.00020517,2]
[362857953,1748494238223,-212.52,0.00020517,2]
[362857955,1748494238232,-495.54,0.00020517,2]
[362857957,1748494238241,-376.32,0.00020517,2]
[362857959,1748494238252,-430.0,0.00020517,2]
[362857961,1748494238260,-158.58,0.00020517,2]
[362857963,1748494238269,-430.0,0.00020517,2]
[362857965,1748494238279,-222.64,0.00020517,2]
[362857967,1748494238288,-430.0,0.00020517,2]
[362857969,1748494238297,-430.0,0.00020517,2]
[362857971,1748494238306,-981.46,0.00020517,2]
[362857973,1748494238316,-430.0,0.00020517,2]
[362857975,1748494238325,-430.0,0.00020517,2]
[362857977,1748494238334,-430.0,0.00020517,2]
[362857979,1748494238343,-430.0,0.00020517,2]
[362857981,1748494238352,-430.0,0.00020517,2]
[362857983,1748494238363,-430.0,0.00020517,2]
[362857985,1748494238376,-430.0,0.00020517,2]
[362857987,1748494238385,-430.0,0.00020517,2]
[362857996,1748494238485,-606.31,0.00020517,2]
[362857997,1748494238495,-430.0,0.00020517,2]
[362857998,1748494238507,-427.92,0.00020517,2]
[362857999,1748494238515,-430.0,0.00020517,2]
[362858000,1748494238524,-430.0,0.00020517,2]
[362858001,1748494238534,-430.38,0.00020517,2]
[362858002,1748494238545,-470.09,0.00020517,2]
[362858003,1748494238555,-430.0,0.00020517,2]
[362858004,1748494238564,-607.17,0.00020517,2]
[362858005,1748494238573,-430.0,0.00020517,2]
[362858006,1748494238583,-430.0,0.00020517,2]
[362858007,1748494238592,-430.0,0.00020517,2]
[362858008,1748494238601,-553.44,0.00020517,2]
[362858009,1748494238611,-1824.96,0.00020517,2]
[362858010,1748494238620,-500.0,0.00020517,2]
[362858011,1748494238629,-1243.86,0.00020517,2]
[362858012,1748494238641,-430.0,0.00020517,2]
[362858013,1748494238650,-563.7,0.00020517,2]
[362858014,1748494238659,-156.03,0.00020517,2]
[362858015,1748494238668,-430.0,0.00020517,2]
[362858016,1748494238678,-273.42,0.00020518,2]
[362858017,1748494238687,-304.91553664,0.00020518,2]
[362858018,1748494238696,-461.47155028,0.00020518,2]
[362858019,1748494238705,-245.31676408,0.00020518,2]
[362858020,1748494238720,-430.0,0.00020518,2]
[362858021,1748494238732,-430.0,0.00020518,2]
[362858022,1748494238741,-430.0,0.00020518,2]
[362858023,1748494238752,-430.0,0.00020518,2]
[362858024,1748494238762,-430.0,0.00020518,2]
[362858025,1748494238771,-430.0,0.00020518,2]
[362858026,1748494238780,-475.58,0.00020518,2]
[362858027,1748494238789,-430.0,0.00020518,2]
[362858028,1748494238798,-483.17,0.00020518,2]
[362858029,1748494238807,-520.34,0.00020518,2]
[362858030,1748494238816,-430.0,0.00020518,2]
[362858031,1748494238825,-171.7,0.00020518,2]
[362858032,1748494238834,-897.4,0.00020518,2]
[362858033,1748494238843,-430.0,0.00020518,2]
[362858034,1748494238852,-430.0,0.00020518,2]
[362858035,1748494238862,-430.0,0.00020518,2]
[362858036,1748494238871,-1000.0,0.00020521,2]
[362858037,1748494238880,-430.0,0.00020539,2]
[362858038,1748494238889,-160.0,0.0002054,2]
[362858039,1748494238899,-273.55843738,0.0002059,3]
[362858040,1748494238908,-150.77982721,0.00020697,2]
[362858041,1748494238917,-311.077,0.00020704,2]
[362858042,1748494238927,-273.55843738,0.00020762,3]
[362858043,1748494238936,-430.0,0.00020789,2]
[362858044,1748494238946,-430.0,0.00020789,2]
[362858045,1748494238955,-430.0,0.00020789,2]
[362858046,1748494238965,-443.23,0.00020789,2]
[362858047,1748494238974,-1738.56,0.00020789,2]
[362858048,1748494238983,-192.6235388,0.00020789,2]
[362858049,1748494238993,-1891.53,0.0002079,2]
[362858050,1748494239004,-430.0,0.0002079,2]
[362858051,1748494239013,-738.68,0.0002079,2]
[362858052,1748494239022,-2813.98,0.0002079,2]
[362858053,1748494239032,-430.0,0.0002079,2]
[362858054,1748494239042,-1157.71,0.0002079,2]
[362858055,1748494239052,-1197.27,0.0002079,2]
[362858056,1748494239065,-430.0,0.0002079,2]
[362858057,1748494239074,-430.0,0.0002079,2]
[362858058,1748494239083,-430.0,0.0002079,2]
[362858059,1748494239096,-430.0,0.0002079,2]
[362858060,1748494239107,-430.0,0.0002079,2]
[362858061,1748494239116,-430.0,0.0002079,2]
[362858062,1748494239126,-430.0,0.0002079,2]
[362858063,1748494239136,-208.73,0.0002079,2]
[362858064,1748494239146,-430.0,0.0002079,2]
[362858065,1748494239158,-430.0,0.0002079,2]
[362858066,1748494239172,-430.0,0.0002079,2]
[362858067,1748494239183,-430.0,0.0002079,2]
[362858068,1748494239201,-430.0,0.00020791,2]
[362858069,1748494239211,-430.0,0.00020791,2]
[362858070,1748494239221,-430.0,0.00020791,2]
[362858071,1748494239231,-430.0,0.00020791,2]
[362858072,1748494239241,-430.0,0.00020791,2]
[362858073,1748494239252,-430.0,0.00020791,2]
[362858074,1748494239262,-430.0,0.00020791,2]
[362858075,1748494239271,-981.46,0.00020791,2]
[362858076,1748494239280,-430.0,0.00020791,2]
[362858077,1748494239290,-430.0,0.00020791,2]
[362858078,1748494239300,-430.0,0.00020791,2]
[362858079,1748494239310,-201.42,0.00020791,2]
[362858080,1748494239320,-430.0,0.00020791,2]
[362858081,1748494239330,-430.0,0.00020791,2]
[362858082,1748494239340,-430.0,0.00020791,2]
[362858083,1748494239349,-606.31,0.00020791,2]
[362858084,1748494239359,-430.0,0.00020791,2]
[362858085,1748494239369,-430.0,0.00020791,2]
[362858086,1748494239379,-430.0,0.00020791,2]
[362858087,1748494239388,-430.38,0.00020791,2]
[362858088,1748494239398,-470.09,0.00020791,2]
[362858089,1748494239408,-430.0,0.00020791,2]
[362858090,1748494239419,-607.17,0.00020791,2]
[362858091,1748494239428,-430.0,0.00020791,2]
[362858092,1748494239438,-430.0,0.00020791,2]
[362858093,1748494239447,-430.0,0.00020791,2]
[362858094,1748494239458,-1824.96,0.00020791,2]
[362858095,1748494239468,-500.0,0.00020791,2]
[362858096,1748494239478,-1243.86,0.00020791,2]
[362858097,1748494239488,-430.0,0.00020791,2]
[362858098,1748494239499,-430.0,0.00020791,2]
[362858100,1748494239509,-430.0,0.00020792,2]
[362858101,1748494239519,-430.0,0.00020792,2]
[362858102,1748494239529,-430.0,0.00020792,2]
[362858103,1748494239539,-430.0,0.00020792,2]
[362858104,1748494239549,-430.0,0.00020792,2]
[362858105,1748494239559,-430.0,0.00020792,2]
[362858106,1748494239568,-430.0,0.00020792,2]
[362858107,1748494239578,-430.0,0.00020792,2]
[362858108,1748494239587,-897.4,0.00020792,2]
[362858109,1748494239596,-430.0,0.00020792,2]
[362858110,1748494239605,-430.0,0.00020792,2]
[362858111,1748494239615,-430.0,0.00020792,2]
[362858112,1748494239623,-430.0,0.00020813,2]
[362858113,1748494239633,-160.0,0.00020897,2]
[362858114,1748494239646,-423.31762986,0.00020897,2]
[362858115,1748494239655,-229.26895353,0.00020897,2]
[362858116,1748494239666,-273.55843738,0.00020934,4]
[362858117,1748494239675,-67681.7484523,0.00021,3]
[362858118,1748494239685,-252.7,0.00021,2]
[362858119,1748494239695,-430.0,0.00021063,2]
[362858120,1748494239704,-204.98,0.00021063,2]
[362858121,1748494239715,-430.0,0.00021063,2]
[362858122,1748494239724,-443.23,0.00021063,2]
[362858124,1748494239734,-1738.56,0.00021063,2]
[362858126,1748494239744,-1891.53,0.00021064,2]
[362858127,1748494239754,-495.48,0.00021064,2]
[362858128,1748494239764,-738.68,0.00021064,2]
[362858130,1748494239773,-2813.98,0.00021064,2]
[362858131,1748494239782,-430.0,0.00021064,2]
[362858132,1748494239791,-1157.71,0.00021064,2]
[362858133,1748494239801,-1197.27,0.00021064,2]
[362858134,1748494239810,-430.0,0.00021064,2]
[362858135,1748494239820,-430.0,0.00021064,2]
[362858137,1748494239829,-430.0,0.00021064,2]
[362858139,1748494239838,-430.0,0.00021064,2]
[362858140,1748494239848,-430.0,0.00021064,2]
[362858141,1748494239857,-430.0,0.00021064,2]
[362858142,1748494239867,-430.0,0.00021064,2]
[362858143,1748494239876,-430.0,0.00021064,2]
[362858145,1748494239886,-430.0,0.00021064,2]
[362858146,1748494239896,-430.0,0.00021064,2]
[362858147,1748494239906,-430.0,0.00021064,2]
[362858148,1748494239915,-400.89,0.00021065,2]
[362858149,1748494239925,-268.19901486,0.00021065,2]
[362858150,1748494239935,-430.0,0.00021065,2]
[362858151,1748494239944,-430.0,0.00021065,2]
[362858152,1748494239954,-430.0,0.00021065,2]
[362858153,1748494239965,-430.0,0.00021065,2]
[362858154,1748494239974,-430.0,0.00021065,2]
[362858155,1748494239984,-981.46,0.00021065,2]
[362858157,1748494239994,-430.0,0.00021065,2]
[362858159,1748494240004,-430.0,0.00021065,2]
[362858160,1748494240014,-430.0,0.00021065,2]
[362858161,1748494240024,-433.82735018,0.00021065,2]
[362858162,1748494240033,-532.16679164,0.00021065,2]
[362858163,1748494240042,-606.31,0.00021065,2]
[362858164,1748494240052,-430.0,0.00021065,2]
[362858165,1748494240061,-430.0,0.00021065,2]
[362858166,1748494240070,-430.0,0.00021065,2]
[362858167,1748494240080,-430.38,0.00021065,2]
[362858168,1748494240089,-470.09,0.00021065,2]
[362858169,1748494240099,-430.0,0.00021065,2]
[362858170,1748494240108,-607.17,0.00021065,2]
[362858171,1748494240118,-363.92,0.00021065,2]
[362858172,1748494240128,-222.28,0.00021065,2]
[362858173,1748494240137,-500.35979412,0.00021065,2]
[362858174,1748494240147,-1824.96,0.00021065,2]
[362858175,1748494240157,-500.0,0.00021065,2]
[362858176,1748494240167,-1243.86,0.00021065,2]
[362858177,1748494240176,-430.0,0.00021065,2]
[362858178,1748494240186,-430.0,0.00021065,2]
[362858179,1748494240195,-430.0,0.00021066,2]
[362858180,1748494240204,-430.0,0.00021066,2]
[362858181,1748494240214,-435.5,0.00021066,2]
[362858182,1748494240223,-430.0,0.00021066,2]